Cogmind - Beta 16.1 @@@ ROGUE MODE // 2026.04.05 @ 13:35:14 Player: WetterLettuce Result: Self-destructed Performance ------------- Evolutions (1) 500 Regions Visited (4) 800 Robots Destroyed (9) 45 Value Destroyed (298) 298 Prototype IDs (0) 0 Alien Tech Used (0) 0 Bonus (0) 0 TOTAL SCORE: 1643 Bonus ------- None Cogmind --------- Core Integrity 400/400 Matter 300/300 Energy 125/125 System Corruption 0% Temperature Cool (0) Movement Walking (120) Location -9/Mines Parts ------- > --- POWER (1) -------- Light Ion Engine > --- PROPULSION (2) --- Aluminum Leg Aluminum Leg > --- UTILITY (3) ------ Heat Sink Small Storage Unit Improved Targeting Computer > --- WEAPON (3) ------- Medium Laser Assault Rifle > --- INVENTORY (8) ---- Light Ion Engine Aluminum Leg Aluminum Leg Wheel Structural Scanner Medium Laser Rocket Launcher Mining Laser Peak State ------------ > --- POWER ------------ Light Ion Engine > --- PROPULSION ------- Aluminum Leg Aluminum Leg > --- UTILITY ---------- Heat Sink Small Storage Unit Improved Targeting Computer > --- WEAPON ----------- Medium Laser Assault Rifle > --- INVENTORY -------- Light Ion Engine Aluminum Leg Aluminum Leg Wheel Structural Scanner Medium Laser Rocket Launcher Mining Laser [Rating: 9] Favorites ----------- Power Light Ion Engine Engine Light Ion Engine Propulsion Aluminum Leg Leg Aluminum Leg Wheel Wheel Utility Small Storage Unit Device Heat Sink Storage Small Storage Unit Processor Improved Targeting Computer Weapon Assault Rifle Energy Gun Medium Laser Ballistic Gun Assault Rifle Build | -11 -10 -10 -9 -9 ------- Run | Yrd Mat Min Mat Min Slots Evolved 2 | . . . 2 . Power . | . . . . . Propulsion . | . . . . . Utility 1 | . . . 1 . Weapon 1 | . . . 1 . Parts Attached 13 | 6 6 . 1 . Power 2 | 1 1 . . . Engine 2 | 1 1 . . . Core . | . . . . . Reactor . | . . . . . Propulsion 5 | 2 3 . . . Treads . | . . . . . Leg 3 | . 3 . . . Wheel 2 | 2 . . . . Hover . | . . . . . Flight . | . . . . . Utility 4 | 1 2 . 1 . Device 2 | . 2 . . . Storage 1 | 1 . . . . Processor 1 | . . . 1 . Hackware . | . . . . . Protection . | . . . . . Artifact . | . . . . . Weapon 2 | 2 . . . . Energy Gun 1 | 1 . . . . Energy Cannon . | . . . . . Ballistic Gun 1 | 1 . . . . Ballistic Cannon . | . . . . . Launcher . | . . . . . Special Weapon . | . . . . . Impact Weapon . | . . . . . Slashing Weapon . | . . . . . Piercing Weapon . | . . . . . Special Melee Weapon . | . . . . . Unidentified Prototypes . | . . . . . Parts Lost 2 | . 2 . . . Power 1 | . 1 . . . Propulsion 1 | . 1 . . . Utility . | . . . . . Weapon . | . . . . . Highest Loss Streak 1 | . 1 . . . To Critical Strikes . | . . . . . Average Backups 6 | 1 6 8 8 . Power . | . 1 1 1 . Propulsion 2 | . 2 3 3 . Utility 1 | . 1 1 1 . Weapon 2 | . 1 2 3 . Tool/Special . | . . . . . Unused Backups 6 | . . . . 6 Power 1 | . . . . 1 Propulsion 1 | . . . . 1 Utility 1 | . . . . 1 Weapon 3 | . . . . 3 Tool/Special . | . . . . . Average Slot Usage (%) 95 | . 96 100 81 . Engine 12 | . 12 14 11 . Leg 21 | . 18 28 22 . Wheel 5 | . 9 . . . Device 12 | . 12 14 11 . Storage 13 | . 14 14 11 . Energy Gun 13 | . 14 14 11 . Ballistic Gun 13 | . 14 14 11 . Peak Build Rating 9 | 6 7 7 9 . Average Rating 6 | 4 6 7 8 . On Entrance 5 | . 6 7 7 9 Avg Prop Armor Cover (%) 6 | . 6 . . . Naked Turns . | . . . . . Heaviest Build 15 | 14 15 13 13 . Greatest Support 26 | 26 26 20 20 . Greatest Overweight (x) . | . . . . . Average Overweight (x) . | . . . . . Largest Inventory Capacity 8 | 8 8 8 8 . Average Capacity 7 | 7 8 8 8 . Most Carried 8 | 4 8 8 8 . Average Carried 6 | 1 6 7 8 . Final Capacity 8 | 8 8 8 8 8 Final Carried 8 | 4 8 8 8 8 Class Distribution -------------------- 100% | Mutant Dominant Class ---------------- Mutant | -10/Materials Mutant | -10/Mines Mutant | -9/Materials Mutant | -9/Mines Resources | -11 -10 -10 -9 -9 ----------- Run | Yrd Mat Min Mat Min Matter Collected 428 | 173 233 . 22 . Remotely . | . . . . . Salvage Created 341 | . 341 . . . Parts 20 | . 20 . . . Haulers Intercepted . | . . . . . Recyclers Shooed . | . . . . . Parts Field Recycled . | . . . . . Retrieved Matter . | . . . . . Parts Self-Destructed . | . . . . . Prevented . | . . . . . Parts Restored . | . . . . . Kills | -11 -10 -10 -9 -9 ------- Run | Yrd Mat Min Mat Min Combat Hostiles Destroyed 7 | . 7 . . . Guns 6 | . 6 . . . Classes Destroyed 3 | . 3 . . . Builder 1 | . 1 . . . Operator 1 | . 1 . . . Grunt 7 | . 7 . . . Best Kill Streak 5 | . 5 . . . Combat Bots Only 4 | . 4 . . . Max Kills in Single Turn 1 | . 1 . . . Gunslinging . | . . . . . Exploded . | . . . . . Melee . | . . . . . Uniques/NPCs Destroyed . | . . . . . Combat | -11 -10 -10 -9 -9 -------- Run | Yrd Mat Min Mat Min Hostile Shots Fired 62 | . 60 2 . . Missed 26 | . 25 1 . . Hits 36 | . 35 1 . . Projectile 36 | . 35 1 . . Critical Strikes 1 | . 1 . . . Damage Taken 475 | . 461 14 . . Core 99 | . 99 . . . Absorbed by Shields . | . . . . . Core Remaining (%) 80 | 100 . 60 . . Volleys Fired 36 | . 32 1 3 . Largest 2 | . 2 1 2 . Hottest 70 | . 70 20 70 . Shots Fired 71 | . 64 1 6 . Gun 71 | . 64 1 6 . Cannon . | . . . . . Launcher . | . . . . . Special . | . . . . . Kinetic 36 | . 32 1 3 . Thermal 35 | . 32 . 3 . Explosive . | . . . . . Electromagnetic . | . . . . . Robot Hit Streak 11 | . 11 . 1 . Robot Miss Streak 3 | . 2 1 3 . Penetration Max . | . . . . . Secondary Targets 1 | . 1 . . . Max Gunslinging Chain 1 | . 1 . . . Shots Hit Robots 49 | . 47 . 2 . Core Hits 17 | . 17 . . . Critical Kills . | . . . . . Critical Parts Destroyed . | . . . . . Critical Strikes 5 | . 5 . . . Burn 5 | . 5 . . . Melee Attacks . | . . . . . Impact . | . . . . . Slashing . | . . . . . Piercing . | . . . . . Sneak Attacks . | . . . . . Combat Hostiles . | . . . . . Follow-up Attacks . | . . . . . Damage Inflicted 646 | . 623 . 23 . Guns 646 | . 623 . 23 . Cannons . | . . . . . Explosions . | . . . . . Melee . | . . . . . Ramming . | . . . . . Kinetic 372 | . 349 . 23 . Thermal 274 | . 274 . . . Explosive . | . . . . . Electromagnetic . | . . . . . Impact . | . . . . . Slashing . | . . . . . Piercing . | . . . . . Highest Corruption . | . . . . . Average Corruption . | . . . . . Corruption Purged . | . . . . . Corruption Blocked . | . . . . . Overload Shots . | . . . . . Overflow Damage . | . . . . . Projectiles . | . . . . . Explosions . | . . . . . Melee . | . . . . . Knockbacks . | . . . . . Impact . | . . . . . Kinetic . | . . . . . Secondary . | . . . . . Self-Inflicted Damage . | . . . . . Shots . | . . . . . Rammed . | . . . . . Targets Rammed . | . . . . . Kicked . | . . . . . Crushed . | . . . . . Highest Temperature 311 | . 311 . . . Average Temperature 180 | . 180 . . . Received Heat Transfer 285 | . 285 . . . Effects 1 | . 1 . . . Energy Bleed 1 | . 1 . . . Siege Activations . | . . . . . Martial Activations . | . . . . . Shielding Activations . | . . . . . Robots Disrupted . | . . . . . Combat Hostiles . | . . . . . Robots Corrupted . | . . . . . Combat Hostiles . | . . . . . Parts Fried . | . . . . . Impact Corruptions . | . . . . . Robots Melted 1 | . 1 . . . Combat Hostiles 1 | . 1 . . . Parts Melted 3 | . 3 . . . Heat Transferred 1184 | . 1184 . . . Parts Sabotaged . | . . . . . Parts Stolen . | . . . . . Parts Stripped . | . . . . . Power Chain Reactions . | . . . . . Alert | -11 -10 -10 -9 -9 ------- Run | Yrd Mat Min Mat Min Maximum Alert Level . | . . . . . Low Security (%) 100 | 100 100 100 100 . Level 1 . | . . . . . Level 2 . | . . . . . Level 3 . | . . . . . Level 4 . | . . . . . Level 5 . | . . . . . High Security . | . . . . . Max Security . | . . . . . Peak Influence 106 | . 106 23 14 . Initial 23 | . . 23 . . Average 30 | . 52 5 1 . Influence Increases 205 | . 191 . 14 . Destroy 0b10 Robot/C 140 | . 140 . . . Destroy 0b10 Robot/NC 10 | . 10 . . . Destroy Leader 40 | . 40 . . . Successful Hack 14 | . . . 14 . Destroy Structure 1 | . 1 . . . Influence Decreases 205 | . 130 61 14 . Entered New Map 38 | . . 38 . . Time Decay 157 | . 120 23 14 . Lost Part 10 | . 10 . . . Squads Dispatched 3 | . 2 . 1 . Investigation . | . . . . . Extermination . | . . . . . Reinforcement 3 | . 2 . 1 . Assault . | . . . . . Garrison . | . . . . . Intercept . | . . . . . Searches Triggered . | . . . . . Construction Impeded . | . . . . . Haulers Reinforced . | . . . . . Active Scanning Responses . | . . . . . Cargo Convoy Interrupts . | . . . . . Stealth | -11 -10 -10 -9 -9 --------- Run | Yrd Mat Min Mat Min Distress Signals . | . . . . . Communications Jammed . | . . . . . Distress Signals . | . . . . . Times Spotted 19 | . 9 9 1 . Peak Tracking Total 22 | . 6 22 3 . Tactical Retreats . | . . . . . Traps | -11 -10 -10 -9 -9 ------- Run | Yrd Mat Min Mat Min Traps Triggered . | . . . . . Indirectly . | . . . . . Trap Hack Attempts . | . . . . . Triggered . | . . . . . Disarmed . | . . . . . Reprogrammed . | . . . . . Reused . | . . . . . Traps Extracted . | . . . . . Installed . | . . . . . Triggered . | . . . . . Machines | -11 -10 -10 -9 -9 ---------- Run | Yrd Mat Min Mat Min Machines Disabled . | . . . . . Max in Single Turn . | . . . . . Machines Repaired . | . . . . . Machines Dismantled . | . . . . . Machines Sabotaged . | . . . . . Overloaded Fab Kills . | . . . . . Hacking | -11 -10 -10 -9 -9 --------- Run | Yrd Mat Min Mat Min Machines Accessed 1 | . . . 1 . Terminals 1 | . . . 1 . Fabricators . | . . . . . Repair Stations . | . . . . . Recycling Units . | . . . . . Scanalyzers . | . . . . . Garrison Access . | . . . . . Total Hacks 2 | . . . 2 . Successful 1 | . . . 1 . Failed 1 | . . . 1 . Catastrophic . | . . . . . Database Lockouts . | . . . . . Manual 1 | . . . 1 . Terminals 2 | . . . 2 . Fabricators . | . . . . . Repair Stations . | . . . . . Recycling Units . | . . . . . Scanalyzers . | . . . . . Garrison Access . | . . . . . Terminal Hacks . | . . . . . Fabricator Hacks . | . . . . . Repair Station Hacks . | . . . . . Recycling Unit Hacks . | . . . . . Scanalyzer . | . . . . . Garrison Access Hacks . | . . . . . Unauthorized Hacks 1 | . . . 1 . Terminals 1 | . . . 1 . Botnet 1 | . . . 1 . Fabricators . | . . . . . Repair Stations . | . . . . . Recycling Units . | . . . . . Scanalyzers . | . . . . . Garrison Access . | . . . . . Data Cores Recovered . | . . . . . Used . | . . . . . Hacking Detections 1 | . . . 1 . Full Trace Events . | . . . . . Feedback Events . | . . . . . Feedback Blocked . | . . . . . Robot Schematics Acquired . | . . . . . Robots Built . | . . . . . Authchips . | . . . . . Time . | . . . . . Total Robot Build Rating . | . . . . . Part Schematics Acquired . | . . . . . Parts Built . | . . . . . Authchips . | . . . . . Time . | . . . . . Total Part Build Rating . | . . . . . Part Studies Acquired . | . . . . . Parts Repaired . | . . . . . Time . | . . . . . Parts Recycled . | . . . . . Recycled Matter . | . . . . . Retrieved Matter . | . . . . . Retrieved Components . | . . . . . Parts Scanalyzed . | . . . . . Part Schematics Acquired . | . . . . . Parts Damaged . | . . . . . Bothacking | -11 -10 -10 -9 -9 ------------ Run | Yrd Mat Min Mat Min Used RIF Installer . | . . . . . Robots Hacked . | . . . . . Non-combat . | . . . . . Combat . | . . . . . Robot Hacks Applied . | . . . . . Relay Couplers Released . | . . . . . Fabnet Peak Effective % . | . . . . . Robots Rewired . | . . . . . Allies Hacked . | . . . . . Hacks Repelled . | . . . . . Allies | -11 -10 -10 -9 -9 -------- Run | Yrd Mat Min Mat Min Total Allies . | . . . . . Largest Group . | . . . . . Highest-Rated Group . | . . . . . Highest-Rated Ally . | . . . . . Total Orders . | . . . . . Ally Attacks . | . . . . . Total Damage . | . . . . . Kills . | . . . . . Allies Corrupted . | . . . . . Allies Melted . | . . . . . Intel | -11 -10 -10 -9 -9 ------- Run | Yrd Mat Min Mat Min Active Infowar (turns) 41 | . 41 . . . Terrain 41 | . 41 . . . Robot Analysis Total . | . . . . . Derelict Logs Recovered 1 | . . 1 . . Drone Launches . | . . . . . Drone Recoveries . | . . . . . Exploration | -11 -10 -10 -9 -9 ------------- Run | Yrd Mat Min Mat Min Turns Passed 615 | 49 335 149 82 . Spaces Moved 407 | 42 184 121 60 . Core 2 | 2 . . . . Treads . | . . . . . Legs 308 | . 127 121 60 . Wheels 97 | 40 57 . . . Hover . | . . . . . Flight . | . . . . . Fastest Speed 50 | 50 90 120 120 . Average Speed 112 | 87 110 120 120 . Slowest Speed 120 | 90 120 120 120 . Overloaded Moves . | . . . . . Propulsion Burnouts . | . . . . . Robots Hopped . | . . . . . Potential Cave-ins . | . . . . . Cave-ins Triggered . | . . . . . Exploration Rate (%) 21 | 3 46 48 7 2 Regions Visited 4 Branch Regions 2 Pre-discovered Areas . | . . . . . Known Exits Taken . | . . . . . Unknown Exits Taken 4 | 1 1 1 1 . Scrap Searched . | . . . . . Spaces Dug . | . . . . . Terrain Destroyed . | . . . . . Melee . | . . . . . Projectile . | . . . . . AOE . | . . . . . Terrain Rammed . | . . . . . Walls Destroyed . | . . . . . Machines Disabled . | . . . . . Actions | -11 -10 -10 -9 -9 --------- Run | Yrd Mat Min Mat Min Total 487 | 51 249 124 63 . Wait 24 | . 23 1 . . Move 403 | 41 183 120 59 . Hop . | . . . . . Pick Up 10 | 4 5 1 . . Fast Attach 8 | 6 1 . 1 . Attach 2 | . 2 . . . Detach . | . . . . . Swap 3 | . 3 . . . Drop 1 | . . 1 . . Fire 36 | . 32 1 3 . Melee . | . . . . . Ram . | . . . . . Kick . | . . . . . Crush . | . . . . . Escape Stasis . | . . . . . Rewire . | . . . . . Trap . | . . . . . Miscellaneous . | . . . . . Route ------- -11/Scrapyard -10/Materials -10/Mines -9/Materials -9/Mines History --------- Turn | Location | Event 29 | -11/Scrapyard | Discovered new exit (range 15) 50 | -11/Scrapyard | Entered Materials 315 | -10/Materials | Build established: Mutant 378 | -10/Materials | Discovered new exit (range 4) 385 | -10/Materials | Entered Mines 392 | -10/Mines | Received a Rocket Launcher from a helpful Derelict 452 | -10/Mines | Assembled infested the area 517 | -10/Mines | Discovered new exit (range 10) 534 | -10/Mines | Entered Materials 534 | -9/Materials | Evolved 2 slots: Utility x1, Weapon x1 534 | -9/Materials | Discovered new exit (range 7) 616 | -9/Materials | Entered Mines 616 | -9/Mines | Self-destructed Last Messages --------------- K-01 Serf cleans the Plasma Injector. PARAMETERS=UTILITY+1,WEAPON+1 LOCATION=UNKNOWN GOAL=ESCAPE EXIT=FOUND Connecting with Terminal... Current location identified: Materials >>Trojan(Botnet) Trojan loaded successfully. Testing... Terminal linked with 0 systems. Awaiting botnet instructions. ALERT: Hostiles spotted, dispatching reinforcements to Terminal M006. K-01 Serf collects debris. Acquired Imp. Targeting Computer. Acquired 22 matter. LOCATION=UNKNOWN GOAL=ESCAPE Something is scanning the area. Map ----- +----------------------------------------------------+ | ????????????????????????????? | | ????????????????????????????? | | ????????????????????????????? | | ????????????????????????????? | | ????????????????????????????? | | ????????????????????????????? | | ????????????????????????????? | | ????????????????????????????? | | ????????????????????????????? | | ????????????????????????????? | | ????????????????????????????? | | ????????????????????????????? | | ????????????????????????????? | | ????????????????????????????? | | ????????????????????????????? | | ????????????????????????????? | | ????????????????????????????? | | ????????????????????????????? | | ????????????????????????????? | | ????????????????????????????? | | ?#####??????????????????????? | | ?# ??????????????????????? | | ?# ??????????????????????? | | ?# ##?????????????????????? | | ?# ##????????????????????? | | ??# @ #????????????????????? | | ??# #???????????????????? | | ??# #???????????????????? | | ?? #???????????????????? | | ?# ##???????????????????? | | ?## ##????????????????????? | | ??#####?????????????????????? | | ????????????????????????????? | | ????????????????????????????? | | ????????????????????????????? | | ????????????????????????????? | | ????????????????????????????? | | ????????????????????????????? | | ????????????????????????????? | | ????????????????????????????? | | ????????????????????????????? | | ????????????????????????????? | | ????????????????????????????? | | ????????????????????????????? | | ????????????????????????????? | | ????????????????????????????? | | ????????????????????????????? | | ????????????????????????????? | | ????????????????????????????? | | ????????????????????????????? | +----------------------------------------------------+ Best States ------------- Heat Dissipation 38 Energy Generation 10 Energy Capacity 250 Matter Stores 300 Matter Capacity 300 Sight Range 16 Terrain Scan Range 14 Terrain Scan Density 10 Evasion (%) 55 Targeting Accuracy 6 Item Schematics ----------------- None Robot Schematics ------------------ None Fabricated ------------ Nothing Repaired ---------- Nothing Studied --------- None Alien Tech Used ----------------- None Achievements -------------- None Challenges ------------ None Game ------ Seed GhostFlyingCompressor Manual? 0 Play Time 00:04:36 Cumulative 107.5 hours Start 2026.04.05 @ 13:30:42 End 2026.04.05 @ 13:35:14 Sessions 1 Manual Loads 0 Difficulty Rogue Special Mode None Game No. 126 Rogue 126 Adventurer 0 Explorer 0 Win Type - Total 1 Types 1/0/0/0/0/0/0/0/0/0 Lore% 74 Gallery% 54 Achievement% 39 Wizard Run 0 Options --------- Layout 1 ASCII 0 Keyboard 0 Movement Mouse Keybinds 0 Fullscreen 2 Font 24/Smallcaps Map View 50x35 Zoom Use 0% Tactical HUD 0 Map Filters NONE Filters NONE Steam 1 RUN: 47c7881d-e2c7-493a-9518-d8f3e2ef043b